bitfinex/quotes_BTCUSD_20220207
["timestamp","ask_amount","ask_price","bid_price","bid_amount"]
[1644211988278,0.29558295,42821.0,42804.0,0.116751]
[1644211988479,0.12012001,42822.0,42817.0,0.06864893]
[1644211988675,0.00052001,42822.0,42818.0,0.0467]
[1644211988874,0.03972607,42820.0,42818.0,0.0467]
[1644211989079,0.03816981,42820.0,42818.0,0.05853019]
[1644211989276,0.03816981,42820.0,42818.0,0.116905]
[1644211989975,0.03816981,42820.0,42818.0,0.05853019]
[1644211990377,0.25653701,42822.0,42818.0,0.05853019]
[1644211990378,0.25601677,42822.0,42818.0,0.05853019]
[1644211990580,0.25653701,42822.0,42818.0,0.05853019]
[1644211990877,0.25653701,42822.0,42818.0,0.11753019]
[1644211990878,0.03816981,42820.0,42818.0,0.11753019]
[1644211991079,0.03816981,42820.0,42818.0,0.06753019]
[1644211991277,0.00052024,42822.0,42818.0,0.06753019]
[1644211991479,0.05,42825.0,42818.0,0.06753019]
[1644211991723,0.03816981,42820.0,42818.0,0.1259047]
[1644211991922,0.0005202,42822.0,42819.0,0.326816]
[1644211992121,0.0005202,42822.0,42818.0,0.11407451]
[1644211992322,0.03816981,42820.0,42818.0,0.1759047]
[1644211992522,0.03816981,42820.0,42819.0,0.326816]
[1644211994125,0.03816981,42820.0,42818.0,0.05853019]
[1644211994126,0.0005202,42822.0,42818.0,0.05853019]
[1644211994330,0.25491351,42827.0,42818.0,0.05853019]
[1644211994526,0.03816981,42820.0,42818.0,0.05853019]
[1644211994726,0.25491351,42827.0,42818.0,0.07953019]
[1644211994927,0.48008991,42827.0,42818.0,0.13790435]
[1644211995126,0.27436385,42827.0,42818.0,0.13790435]
[1644211996013,0.04918745,42827.0,42818.0,0.11690435]
[1644211996211,0.03816981,42820.0,42818.0,0.11690435]
[1644211996411,0.03816981,42820.0,42819.0,0.326816]
[1644211996610,0.03816981,42820.0,42819.0,0.373516]
[1644211996811,0.21679411,42830.0,42819.0,0.373516]
[1644211997015,0.03816981,42820.0,42819.0,0.0467]
[1644211997213,0.03816981,42820.0,42819.0,0.373516]
[1644211998013,0.03816981,42820.0,42819.0,0.66510457]
[1644211998214,0.05,42831.0,42819.0,0.33828857]
[1644211998415,0.08222677,42833.0,42819.0,0.33828857]
[1644211998416,0.03816981,42830.0,42819.0,0.33828857]
[1644211998616,0.13222677,42833.0,42822.0,0.05837]
[1644211998915,0.326816,42832.0,42823.0,0.0467]
[1644211999116,0.00062062,42827.0,42823.0,0.0467]
[1644212000022,0.26236848,42831.0,42823.0,0.0467]
[1644212000224,0.00062062,42827.0,42823.0,0.0467]
[1644212000626,0.00062062,42827.0,42825.0,0.33864619]
[1644212000924,0.00062062,42827.0,42826.0,0.67420204]
[1644212001126,0.00028747,42833.0,42826.0,0.67420204]
[1644212001328,0.00028747,42835.0,42829.0,0.07018019]
[1644212001525,0.00248209,42835.0,42830.0,0.36037454]
[1644212001726,0.00276956,42835.0,42834.0,0.01183019]
[1644212001926,0.00248209,42835.0,42834.0,0.05853019]
[1644212002324,0.03816981,42837.0,42834.0,0.05853019]
[1644212002524,0.03816981,42837.0,42834.0,0.11688119]
[1644212002725,0.03835653,42837.0,42834.0,0.07653019]
[1644212003577,0.03816981,42837.0,42834.0,0.07653019]
[1644212003977,0.03816981,42837.0,42834.0,0.0467]
[1644212004679,0.00028747,42840.0,42834.0,0.0567]
[1644212004878,0.03816981,42837.0,42834.0,0.06853019]
[1644212005276,0.03816981,42837.0,42834.0,0.0567]
[1644212006077,0.03816981,42837.0,42834.0,0.0467]
[1644212006720,0.03816981,42837.0,42834.0,0.0567]
[1644212006924,0.03816981,42837.0,42835.0,0.326816]
[1644212007122,0.03816981,42837.0,42836.0,0.373516]
[1644212007923,0.00062062,42838.0,42836.0,0.373516]
[1644212008125,0.03816981,42837.0,42836.0,0.0467]
[1644212008324,0.00028747,42841.0,42836.0,0.0467]
[1644212008525,0.28421269,42842.0,42836.0,0.0467]
[1644212008526,0.00028747,42840.0,42836.0,0.0467]
[1644212008726,0.00062062,42839.0,42836.0,0.0627]
[1644212008926,0.03816981,42837.0,42836.0,0.0627]
[1644212009930,0.03816981,42837.0,42836.0,0.0467]
[1644212010130,0.00062062,42839.0,42836.0,0.0467]
[1644212010330,0.00062062,42839.0,42836.0,0.10504874]
[1644212010574,0.00062062,42839.0,42837.0,0.326816]
[1644212010772,0.00028747,42841.0,42838.0,0.0467]
[1644212010970,0.26990231,42844.0,42839.0,0.0467]
[1644212010971,0.00028747,42842.0,42839.0,0.0467]
[1644212011170,0.00028747,42842.0,42836.0,0.07134874]
[1644212011171,0.00062062,42840.0,42838.0,0.01183019]
[1644212011972,0.00028747,42842.0,42838.0,0.01183019]
[1644212012273,0.03816981,42843.0,42839.0,0.0467]
[1644212012474,0.03845728,42843.0,42839.0,0.0467]
[1644212012674,0.326816,42842.0,42839.0,0.0467]
[1644212012872,0.05,42842.0,42839.0,0.0507]
[1644212013073,0.326816,42841.0,42839.0,0.0507]
[1644212013272,0.21919671,42844.0,42840.0,0.01183019]
[1644212013572,0.0390779,42843.0,42841.0,0.0467]
[1644212013774,0.03879043,42843.0,42839.0,0.004]
[1644212013971,0.05062062,42843.0,42840.0,0.0467]
[1644212014219,0.05090809,42843.0,42840.0,0.0467]
[1644212014422,0.26919671,42844.0,42840.0,0.0467]
[1644212014620,0.05062062,42844.0,42840.0,0.0467]
[1644212014819,0.05,42843.0,42840.0,0.0537]
[1644212015822,0.26636697,42845.0,42840.0,0.0537]
[1644212015823,0.00062062,42844.0,42840.0,0.0537]
[1644212016021,0.05,42843.0,42840.0,0.0467]
[1644212016521,0.00062062,42844.0,42840.0,0.0467]
[1644212016721,0.05,42843.0,42840.0,0.1140456]
[1644212017625,0.00062062,42844.0,42840.0,0.1140456]
[1644212017823,0.26198759,42845.0,42840.0,0.1140456]
[1644212018072,0.05,42843.0,42840.0,0.1050456]
[1644212018872,0.05,42843.0,42840.0,0.1140456]
[1644212020073,0.05,42843.0,42840.0,0.1050456]
[1644212020472,0.00028747,42847.0,42840.0,0.1050456]
[1644212020673,0.05028747,42848.0,42840.0,0.1050456]
[1644212020872,0.41788747,42849.0,42840.0,0.1140456]
[1644212021074,0.36788747,42849.0,42841.0,0.116682]
[1644212021276,0.05,42846.0,42841.0,0.163382]
[1644212021924,0.05061906,42846.0,42841.0,0.163382]
[1644212022528,0.05061906,42846.0,42841.0,0.44945621]
[1644212022529,0.00061906,42846.0,42841.0,0.44945621]
[1644212022728,0.00028747,42847.0,42843.0,0.326816]
[1644212022930,0.00038747,42850.0,42844.0,0.39247534]
[1644212023133,0.00018631,42846.0,42845.0,0.38513679]
[1644212023326,0.00028747,42849.0,42845.0,0.85421352]
[1644212023530,0.042,42852.0,42848.0,0.65]
[1644212023725,0.042,42852.0,42849.0,0.76077274]
[1644212023929,0.042,42852.0,42851.0,0.326816]
[1644212024127,0.042,42852.0,42851.0,0.743362]
[1644212024324,0.042,42852.0,42851.0,0.901682]
[1644212024826,0.042,42852.0,42851.0,0.862362]
[1644212025978,0.042,42852.0,42851.0,0.542516]
[1644212026779,0.042,42852.0,42851.0,0.562516]
[1644212026980,0.0419,42852.0,42851.0,0.512516]
[1644212027179,0.0419,42852.0,42851.0,0.412516]
[1644212027180,0.0919,42852.0,42851.0,0.412516]
[1644212027380,0.0419,42852.0,42851.0,0.512516]
[1644212027982,0.0419,42852.0,42851.0,0.473516]
[1644212028780,0.0419,42852.0,42851.0,0.535516]
[1644212029825,0.31873639,42852.0,42851.0,0.485516]
[1644212030024,0.31873639,42852.0,42851.0,0.373516]
[1644212030228,0.1419,42852.0,42846.0,0.00046]
[1644212030429,0.05,42847.0,42846.0,0.00046]
[1644212030627,0.0505,42851.0,42846.0,0.00046]
[1644212030828,0.0005,42851.0,42846.0,0.00046]
[1644212031723,0.0011186,42851.0,42846.0,0.00046]
[1644212032324,0.0006186,42851.0,42846.0,0.00046]
[1644212032525,0.0424,42852.0,42846.0,0.00046]
[1644212032825,0.0424,42852.0,42846.0,0.01046]
[1644212032826,0.0136186,42851.0,42846.0,0.01046]
[1644212033074,0.05,42849.0,42846.0,0.01046]
[1644212033475,0.07530423,42847.0,42846.0,0.01046]
[1644212033674,0.40212023,42847.0,42846.0,0.01046]
[1644212033875,0.45212023,42847.0,42846.0,0.01046]
[1644212034373,0.45212023,42847.0,42846.0,0.00046]
[1644212034574,0.70895486,42847.0,42846.0,0.00046]
[1644212034774,0.79395486,42847.0,42846.0,0.00046]
[1644212035879,0.46713886,42847.0,42846.0,0.00046]
[1644212036075,0.43213886,42847.0,42846.0,0.00046]
[1644212036475,0.30683463,42847.0,42846.0,0.00046]
[1644212036727,0.0006186,42849.0,42846.0,0.00046]
[1644212036928,0.031,42847.0,42846.0,0.00346]
[1644212037828,0.081,42847.0,42846.0,0.00346]
[1644212038227,0.376816,42847.0,42846.0,0.00046]
[1644212038826,0.395816,42847.0,42846.0,0.00046]
[1644212040795,0.404816,42847.0,42846.0,0.00046]
[1644212042097,0.376816,42847.0,42846.0,0.00046]
[1644212042496,0.45842463,42847.0,42846.0,0.00046]
[1644212042896,0.47742463,42847.0,42846.0,0.00046]
[1644212044098,0.45842463,42847.0,42846.0,0.00046]
[1644212044322,0.376816,42847.0,42846.0,0.00046]
[1644212044922,0.408816,42847.0,42846.0,0.00046]
[1644212045924,0.39714838,42847.0,42846.0,0.00046]
[1644212046129,0.43470721,42847.0,42846.0,0.00046]
[1644212046926,0.45770721,42847.0,42846.0,0.00046]
[1644212048177,0.43470721,42847.0,42846.0,0.00046]
[1644212048978,0.45570721,42847.0,42846.0,0.00046]
[1644212050181,0.43470721,42847.0,42846.0,0.00046]
[1644212050983,0.45670721,42847.0,42846.0,0.00046]
[1644212052228,0.43470721,42847.0,42846.0,0.00046]
[1644212052829,0.45670721,42847.0,42846.0,0.00046]
[1644212054231,0.43470721,42847.0,42846.0,0.00046]
[1644212054430,0.36514838,42847.0,42846.0,0.00046]
[1644212054831,0.38714838,42847.0,42846.0,0.00046]
[1644212055483,0.45916869,42847.0,42846.0,0.00046]
[1644212056174,0.43716869,42847.0,42846.0,0.00046]
[1644212056377,0.19488695,42837.0,42835.0,0.01166762]
[1644212056682,0.19488695,42837.0,42832.0,0.00063198]
[1644212056683,0.08734136,42835.0,42832.0,0.00063198]
[1644212056877,0.03833238,42833.0,42832.0,0.00063198]
[1644212057375,0.36514838,42833.0,42832.0,0.00063198]
[1644212057775,0.06842482,42826.0,42821.0,0.14901558]
[1644212057974,0.06842482,42826.0,42823.0,0.01166762]
[1644212058174,0.06842482,42826.0,42825.0,0.01166762]
[1644212058975,0.07342482,42826.0,42825.0,0.01166762]
[1644212059238,0.07342482,42826.0,42823.0,0.0004782]
[1644212059427,0.3412319,42826.0,42823.0,0.0004782]
[1644212060227,0.3412319,42826.0,42820.0,0.0583709]
[1644212060228,0.3362319,42826.0,42820.0,0.0583709]
[1644212060427,0.06842482,42826.0,42822.0,0.01166762]
[1644212060828,0.06842482,42826.0,42820.0,0.0583709]
[1644212061027,0.07642482,42826.0,42820.0,0.0583709]
[1644212062029,0.12642482,42826.0,42820.0,0.0583709]
[1644212062228,0.06842482,42826.0,42820.0,0.0583709]
[1644212063087,0.07742482,42826.0,42820.0,0.0583709]
[1644212063887,0.07742482,42826.0,42821.0,0.00070977]
[1644212064089,0.06842482,42826.0,42821.0,0.00070977]
[1644212064491,0.06842482,42826.0,42822.0,0.01166762]
[1644212064889,0.07642482,42826.0,42822.0,0.01166762]
[1644212065193,0.07642482,42826.0,42823.0,0.326816]
[1644212065389,0.07642482,42826.0,42823.0,0.426816]
[1644212065590,0.07642482,42826.0,42823.0,0.43848362]
[1644212066189,0.07642482,42826.0,42823.0,0.426816]
[1644212066190,0.06842482,42826.0,42823.0,0.426816]
[1644212066390,0.06842482,42826.0,42823.0,0.1]
[1644212066830,0.06842482,42826.0,42820.0,0.0583709]
[1644212067032,0.03833238,42824.0,42820.0,0.0583709]
[1644212067328,0.07542482,42826.0,42820.0,0.0583709]
[1644212067729,0.03833238,42825.0,42819.0,0.326816]
[1644212067930,0.03833238,42825.0,42819.0,0.426816]
[1644212068131,0.03833238,42825.0,42819.0,0.43848362]
[1644212068330,0.06842482,42826.0,42819.0,0.43848362]
[1644212068531,0.30299058,42826.0,42819.0,0.43848362]
[1644212068731,0.30299058,42826.0,42820.0,0.00070948]
[1644212069636,0.26961725,42824.0,42820.0,0.00070948]
[1644212069833,0.26961725,42824.0,42815.0,0.11674396]
[1644212069834,0.03833238,42823.0,42815.0,0.11674396]
[1644212070033,0.03833238,42823.0,42821.0,0.00070947]
[1644212070235,0.56098801,42822.0,42821.0,0.00070947]
[1644212070492,0.61759846,42822.0,42821.0,0.00070947]
[1644212070673,0.56759846,42822.0,42821.0,0.00070947]
[1644212070874,0.58259846,42822.0,42821.0,0.00070947]
[1644212071073,0.58259846,42822.0,42813.0,0.01166762]
[1644212071273,0.25578246,42822.0,42819.0,0.00070948]
[1644212071476,0.326816,42821.0,42819.0,0.00070948]
[1644212071673,0.03833238,42820.0,42819.0,0.00070948]
[1644212071874,0.30218738,42820.0,42819.0,0.00070948]
[1644212072074,0.03833238,42820.0,42819.0,0.00070948]
[1644212072278,0.03833238,42820.0,42817.0,0.01166762]
[1644212072279,0.07580659,42818.0,42817.0,0.01166762]
[1644212072475,0.03833238,42820.0,42817.0,0.33919313]
[1644212072874,0.004,42818.0,42817.0,0.43919313]
[1644212073175,0.004,42818.0,42817.0,0.48589313]
[1644212073375,0.004,42818.0,42817.0,0.48518362]
[1644212074225,0.03833238,42824.0,42817.0,0.48518362]
[1644212074425,0.1238,42831.0,42822.0,0.01166762]
[1644212074627,0.03833238,42830.0,42822.0,0.01166762]
[1644212074830,0.1738,42831.0,42822.0,0.01166762]
[1644212075126,0.22713238,42831.0,42822.0,0.01166762]
[1644212075326,0.0885243,42829.0,42822.0,0.01166762]
[1644212075527,0.0885243,42829.0,42822.0,0.07003611]
[1644212075724,0.1385243,42829.0,42822.0,0.07003611]
[1644212075926,0.015,42831.0,42823.0,0.04737336]
[1644212076131,0.60653238,42843.0,42829.0,0.326816]
[1644212076328,0.326816,42842.0,42835.0,0.01166762]
[1644212076531,0.326816,42842.0,42836.0,0.0467]
[1644212076727,0.03833238,42843.0,42836.0,0.0467]
[1644212076929,0.03833238,42837.0,42836.0,0.0467]
[1644212077128,0.57808739,42837.0,42836.0,0.0467]
[1644212077981,0.62808739,42837.0,42836.0,0.0467]
[1644212078975,0.64208739,42837.0,42836.0,0.0487]
[1644212079275,0.40793841,42837.0,42836.0,0.0487]
[1644212079477,0.14408341,42837.0,42836.0,0.0487]
[1644212079879,0.064,42837.0,42836.0,0.0487]
[1644212080377,0.03833238,42843.0,42836.0,0.0467]
[1644212080978,0.03833238,42843.0,42836.0,0.0497]
[1644212080979,0.10033238,42843.0,42836.0,0.0497]
[1644212081179,0.10033238,42843.0,42839.0,0.07001357]
[1644212081380,0.10033238,42843.0,42840.0,0.0467]
[1644212082231,0.03833238,42843.0,42840.0,0.0467]
[1644212082930,0.09733238,42843.0,42842.0,0.01166762]
[1644212083131,0.09733238,42843.0,42842.0,0.05836762]
[1644212083132,0.17401578,42843.0,42842.0,0.05836762]
[1644212084332,0.11501578,42843.0,42842.0,0.05836762]
[1644212084833,0.03833238,42843.0,42842.0,0.05836762]
[1644212085036,0.09633238,42843.0,42842.0,0.0527]
[1644212085876,0.47314838,42843.0,42842.0,0.0527]
[1644212086276,0.47314838,42843.0,42842.0,0.0467]
[1644212086277,0.4920339,42843.0,42842.0,0.0467]
[1644212086478,0.4920339,42843.0,42842.0,0.0417]
[1644212086977,0.5540339,42843.0,42842.0,0.0427]
[1644212088181,0.4920339,42843.0,42842.0,0.0417]
[1644212088381,0.4920339,42843.0,42835.0,0.01166762]
[1644212088581,0.22291329,42837.0,42835.0,0.01166762]
[1644212088784,0.07774963,42836.0,42835.0,0.01166762]
[1644212089235,0.07774963,42836.0,42835.0,0.43518362]
[1644212089432,0.11633238,42843.0,42835.0,0.43518362]
[1644212089433,0.078,42843.0,42835.0,0.43518362]
[1644212089632,0.078,42843.0,42835.0,0.1467]
[1644212089834,0.128,42843.0,42834.0,0.1]
[1644212090033,0.05,42842.0,42834.0,0.1]
[1644212090236,0.24583332,42836.0,42834.0,0.1]
[1644212090434,0.08476562,42835.0,42834.0,0.1]
[1644212090833,0.08476562,42835.0,42832.0,0.00063362]
[1644212091035,0.10276562,42835.0,42834.0,0.005]
[1644212092235,0.08476562,42835.0,42832.0,0.05898605]
[1644212092635,0.08476562,42835.0,42832.0,0.05835244]
[1644212092838,0.08476562,42835.0,42831.0,0.00063359]
[1644212093078,0.11976562,42835.0,42832.0,0.01]
[1644212093678,0.11976562,42835.0,42832.0,0.06835186]
[1644212094078,0.11976562,42835.0,42833.0,0.326761]
[1644212094278,0.08476562,42835.0,42833.0,0.426761]
[1644212095082,0.10676562,42835.0,42833.0,0.434761]
[1644212095580,0.022,42835.0,42833.0,0.434761]
[1644212095782,0.022,42835.0,42834.0,0.373461]
[1644212096183,0.05,42842.0,42834.0,0.473461]
[1644212096384,0.05,42842.0,42834.0,0.48270665]
[1644212096585,0.13607824,42842.0,42834.0,0.48270665]
[1644212096827,0.18607824,42842.0,42834.0,0.48270665]
[1644212097027,0.24007824,42842.0,42834.0,0.48870665]
[1644212097530,0.24007824,42842.0,42834.0,0.2027]
[1644212097931,0.24007824,42842.0,42834.0,0.0527]
[1644212098330,0.24007824,42842.0,42834.0,0.1027]
[1644212098729,0.19007824,42842.0,42834.0,0.0527]
[1644212098929,0.15407824,42842.0,42834.0,0.0537]
[1644212099330,0.10407824,42842.0,42834.0,0.0537]
[1644212099528,0.15407824,42842.0,42834.0,0.0537]
[1644212099729,0.07914841,42835.0,42834.0,0.0537]
[1644212099929,0.07914841,42835.0,42834.0,0.380461]
[1644212100331,0.07914841,42835.0,42834.0,0.473461]
[1644212100587,0.19159261,42838.0,42834.0,0.473461]
[1644212100787,0.05,42842.0,42834.0,0.1467]
[1644212100985,0.05,42842.0,42834.0,0.1617]
[1644212101389,0.05,42842.0,42834.0,0.0617]
[1644212101784,0.13650765,42842.0,42834.0,0.0617]
[1644212102187,0.13650765,42842.0,42834.0,0.0467]
[1644212102986,0.15650765,42842.0,42834.0,0.0527]
[1644212103787,0.20650765,42842.0,42834.0,0.0527]
[1644212104232,0.18650765,42842.0,42834.0,0.0467]
[1644212105030,0.20450765,42842.0,42834.0,0.0537]
[1644212105430,0.20450765,42842.0,42834.0,0.33513153]
[1644212105631,0.20450765,42842.0,42834.0,0.43513153]
[1644212106235,0.18650765,42842.0,42834.0,0.42813153]
[1644212106833,0.18650765,42842.0,42834.0,0.43312355]
[1644212107034,0.20350765,42842.0,42834.0,0.44012355]
[1644212107235,0.017,42842.0,42836.0,0.5842]
[1644212107434,0.017,42842.0,42841.0,0.5842]
[1644212107633,0.017,42842.0,42841.0,0.6309]
[1644212107832,0.017,42842.0,42841.0,0.7309]
[1644212108092,0.017,42842.0,42841.0,1.78995475]
[1644212108296,0.00028723,42849.0,42843.0,0.50172185]
[1644212108495,0.1001,42850.0,42846.0,0.5842]
[1644212108496,0.10038723,42850.0,42846.0,0.5842]
[1644212108694,0.00028723,42849.0,42847.0,0.0467]
[1644212108891,0.05,42848.0,42841.0,0.1]
[1644212109091,0.05,42842.0,42833.0,0.12168944]
[1644212109293,0.05,42834.0,42832.0,0.08967]
[1644212109491,0.05,42834.0,42813.0,0.116747]
[1644212109492,0.29562409,42833.0,42813.0,0.116747]
[1644212109697,0.1235458,42817.0,42814.0,0.00021435]
[1644212109992,0.326761,42815.0,42813.0,0.00021435]
[1644212110193,0.23362568,42810.0,42808.0,0.00021435]
[1644212110391,0.20483868,42806.0,42805.0,0.00192538]
[1644212110589,0.70350457,42806.0,42805.0,0.00213973]
[1644212110791,0.348951,42806.0,42804.0,0.13458]
[1644212110989,0.0717,42806.0,42803.0,0.00021435]
[1644212111193,0.0717,42806.0,42804.0,0.326761]
[1644212111744,0.025,42806.0,42804.0,0.326761]
[1644212111945,0.17922444,42828.0,42805.0,0.11805741]
[1644212111946,0.05,42828.0,42805.0,0.11805741]
[1644212112144,0.64529582,42832.0,42814.0,0.11674376]
[1644212112342,0.64529582,42832.0,42816.0,0.326761]
[1644212112343,0.05,42822.0,42816.0,0.326761]
[1644212112541,0.05,42822.0,42814.0,0.11674376]
[1644212112741,0.05,42819.0,42810.0,0.00021435]
[1644212112941,0.35669683,42818.0,42809.0,0.5994]
[1644212113144,0.40669683,42818.0,42816.0,0.004]
[1644212113341,0.79720918,42817.0,42816.0,0.004]
[1644212114342,0.79720918,42817.0,42813.0,0.00021435]
[1644212114343,0.84720918,42817.0,42813.0,0.00021435]
[1644212114642,0.51412569,42816.0,42814.0,0.00071243]
[1644212114842,0.67590303,42815.0,42814.0,0.00071243]
[1644212115042,0.72590303,42815.0,42814.0,2.43e-06]
[1644212115246,0.77260303,42815.0,42814.0,2.43e-06]
[1644212115483,0.77260303,42815.0,42805.0,0.00285036]
[1644212115684,0.07233881,42804.0,42803.0,0.00021435]
[1644212115885,0.07233881,42804.0,42802.0,0.0011]
[1644212116083,0.12233881,42804.0,42802.0,0.0011]
[1644212116484,0.38682317,42804.0,42802.0,0.0011]
[1644212116685,0.326761,42803.0,42802.0,0.0011]
[1644212116885,0.60008926,42803.0,42802.0,0.0011]
[1644212117084,0.65008926,42803.0,42802.0,0.0011]
[1644212117284,0.60008926,42803.0,42802.0,0.0011]
[1644212117487,0.14733881,42804.0,42802.0,0.0011]
[1644212117686,0.05,42803.0,42802.0,0.0011]
[1644212117887,0.14733881,42804.0,42802.0,0.0011]
[1644212118086,0.05,42803.0,42802.0,0.0011]
[1644212118889,0.04973281,42803.0,42802.0,0.0011]
[1644212119085,0.07473281,42803.0,42802.0,0.0011]
[1644212119936,0.025,42803.0,42802.0,0.32812819]
[1644212120438,0.025,42803.0,42802.0,0.47812819]
[1644212121034,0.20398036,42809.0,42803.0,0.058392]
[1644212121233,0.20398036,42809.0,42803.0,0.05860635]
[1644212121635,0.39512718,42813.0,42805.0,0.00026719]
[1644212121835,0.39512718,42813.0,42803.0,0.05860635]
[1644212121836,0.27858661,42813.0,42804.0,0.00092631]
[1644212122035,0.302251,42810.0,42807.0,0.00026719]
[1644212122635,0.352251,42810.0,42805.0,0.00021435]
[1644212122835,0.05,42810.0,42804.0,0.00021435]
[1644212123087,0.062,42810.0,42807.0,0.005]
[1644212123286,0.302252,42808.0,42807.0,0.005]
[1644212123486,0.302252,42808.0,42807.0,0.00521435]
[1644212123687,0.302252,42808.0,42807.0,0.005]
[1644212123887,0.36737609,42808.0,42807.0,0.005]
[1644212124287,0.36737609,42808.0,42803.0,0.00021435]
[1644212124288,0.36737609,42808.0,42805.0,0.00071195]
[1644212125088,0.321252,42808.0,42805.0,0.00071195]
[1644212125291,0.04973281,42807.0,42803.0,0.00021435]
[1644212125490,0.22532079,42804.0,42802.0,0.00131435]
[1644212125691,0.04973281,42803.0,42802.0,0.0011]
[1644212125890,0.05,42804.0,42802.0,0.0011]
[1644212126291,0.019,42808.0,42802.0,0.0011]
[1644212126490,0.0699245,42804.0,42802.0,0.0011]
[1644212126733,0.33905653,42809.0,42802.0,0.0011]
[1644212126926,0.18917243,42804.0,42802.0,0.0011]
[1644212127128,0.20117243,42804.0,42802.0,0.0091]
[1644212127327,0.25117243,42804.0,42802.0,0.0091]
[1644212128429,0.32839824,42804.0,42802.0,0.0091]
[1644212129028,0.31639824,42804.0,42802.0,0.0011]
[1644212129232,0.33239824,42804.0,42802.0,0.0071]
[1644212129830,0.33239824,42804.0,42802.0,0.03837107]
[1644212130028,0.04973281,42803.0,42802.0,0.03837107]
[1644212130481,0.04973281,42803.0,42802.0,0.03237107]
[1644212131081,0.06373281,42803.0,42802.0,0.04137107]
[1644212132081,0.06373281,42803.0,42802.0,0.03104307]
[1644212132283,0.36034074,42803.0,42802.0,0.03104307]
[1644212132484,0.36034074,42803.0,42802.0,0.02204307]
[1644212132485,0.37649381,42803.0,42802.0,0.02204307]
[1644212132685,0.8,42802.0,42800.0,0.00071141]
[1644212132886,0.302251,42801.0,42800.0,0.00071141]
[1644212133084,0.87713293,42801.0,42800.0,0.00071141]
[1644212133288,1.12373715,42801.0,42800.0,0.00071141]
[1644212133486,0.84565109,42801.0,42800.0,0.00071141]
[1644212133687,0.54885522,42801.0,42798.0,0.00021455]
[1644212133987,0.04973281,42799.0,42798.0,0.00071085]
[1644212134241,0.04973281,42799.0,42798.0,0.0009254]
[1644212134242,0.42649381,42799.0,42798.0,0.0009254]
[1644212134437,0.42649381,42799.0,42798.0,0.00071085]
[1644212134833,0.302251,42798.0,42797.0,0.27639327]
[1644212135033,0.302251,42798.0,42797.0,0.27617872]
[1644212136133,0.302251,42798.0,42797.0,0.19334872]
[1644212137137,0.313251,42798.0,42796.0,0.00131455]
[1644212137334,0.313251,42798.0,42796.0,0.0011]
[1644212138479,0.302251,42798.0,42796.0,0.0011]
[1644212139080,0.3379484,42797.0,42796.0,0.0011]
[1644212139279,0.6647094,42797.0,42796.0,0.0011]
[1644212140580,0.326761,42797.0,42796.0,0.0011]
[1644212141180,0.339761,42797.0,42796.0,0.0011]
[1644212142031,0.339761,42797.0,42791.0,0.01336719]
[1644212142032,0.8,42796.0,42791.0,0.0131]
[1644212142240,0.04973281,42792.0,42791.0,0.0131]
[1644212142430,0.65841763,42792.0,42791.0,0.0131]
[1644212142730,0.35616663,42792.0,42791.0,0.0131]
[1644212143129,0.75347903,42792.0,42791.0,0.0131]
[1644212143729,1.05573003,42792.0,42791.0,0.0131]
[1644212143932,0.75347903,42792.0,42791.0,0.0131]
[1644212144130,1.05573003,42792.0,42791.0,0.0131]
[1644212144331,0.67241763,42792.0,42791.0,0.0131]
[1644212144734,0.37016663,42792.0,42791.0,0.0131]
[1644212144932,0.67241763,42792.0,42791.0,0.0131]
[1644212145133,0.38316663,42792.0,42791.0,0.0131]
[1644212145334,0.68541763,42792.0,42791.0,0.0131]
[1644212145584,0.37898381,42792.0,42791.0,0.0131]
[1644212145784,0.07673281,42792.0,42791.0,0.0131]
[1644212145984,0.37898381,42792.0,42791.0,0.0131]
[1644212146387,0.35198381,42792.0,42791.0,0.0131]
[1644212147187,0.36698381,42792.0,42791.0,0.0131]
[1644212148387,0.04973281,42792.0,42791.0,0.0131]
[1644212149242,0.05673281,42792.0,42791.0,0.0131]
[1644212149833,0.007,42792.0,42791.0,0.0131]
[1644212150038,0.309251,42792.0,42791.0,0.0131]
[1644212150233,0.007,42792.0,42791.0,0.0131]
[1644212150433,0.40297607,42793.0,42791.0,0.0131]
[1644212150842,0.35198381,42792.0,42791.0,0.012]
[1644212151034,0.302251,42792.0,42791.0,0.012]
[1644212151236,0.21123308,42791.0,42781.0,0.35585776]
[1644212151437,0.10321507,42793.0,42782.0,0.1]
[1644212151636,0.10321507,42793.0,42782.0,0.158416]
[1644212151835,0.10321507,42793.0,42783.0,0.0467]
[1644212152436,0.25286742,42792.0,42786.0,0.11683629]
[1644212152640,0.07621507,42793.0,42787.0,0.0467]
[1644212153278,0.07621507,42793.0,42787.0,0.0617]
[1644212153680,0.22922286,42789.0,42787.0,0.015]
[1644212153880,0.326761,42788.0,42787.0,0.015]
[1644212154080,0.6,42787.0,42777.0,0.00032734]
[1644212154282,0.38874833,42786.0,42777.0,0.00032734]
[1644212154481,0.33663452,42785.0,42777.0,0.00032734]
[1644212154683,0.22585284,42779.0,42777.0,0.00032734]
[1644212154881,0.08126804,42778.0,42777.0,0.00032734]
[1644212156080,0.60161283,42785.0,42777.0,0.00032734]
[1644212156281,0.326761,42784.0,42777.0,0.10032734]
[1644212156855,0.326761,42784.0,42779.0,0.00071233]
[1644212157259,0.42099781,42784.0,42783.0,0.1]
[1644212157454,0.68685571,42784.0,42783.0,0.1]
[1644212157655,0.73685571,42784.0,42783.0,0.1]
[1644212157859,0.42099781,42784.0,42783.0,0.1]
[1644212158454,0.46199781,42784.0,42783.0,0.1]
[1644212159256,0.46199781,42784.0,42783.0,0.109]
[1644212159257,0.47099781,42784.0,42783.0,0.109]
[1644212160495,0.74123981,42784.0,42783.0,0.1]
[1644212160691,0.46199781,42784.0,42783.0,0.1]
[1644212161290,0.47199781,42784.0,42783.0,0.106]
[1644212162391,0.46199781,42784.0,42783.0,0.1]
[1644212162592,0.73688822,42784.0,42783.0,0.1]
[1644212163193,0.47199781,42784.0,42783.0,0.128]
[1644212163993,0.42199781,42784.0,42783.0,0.128]
[1644212164633,0.69890641,42784.0,42783.0,0.128]
[1644212164833,0.69890641,42784.0,42783.0,0.1]
[1644212164834,0.42199781,42784.0,42783.0,0.1]
[1644212165034,0.41199781,42784.0,42783.0,0.1]
[1644212165233,0.42199781,42784.0,42783.0,0.128]